fUST/lending_fUST_20241017
["ID","MTS","AMOUNT","RATE_DAILY","PERIOD"]
[340370881,1729107262051,-342.06280668,0.00042465,60]
[340370882,1729107262089,-500.0,0.00042465,60]
[340370883,1729107262127,-500.0,0.00042465,60]
[340370884,1729107262164,-500.0,0.00042465,60]
[340370885,1729107262201,-4599.54,0.00042465,60]
[340370886,1729107262240,-500.0,0.00042465,60]
[340370887,1729107262278,-500.0,0.00042465,60]
[340370888,1729107262315,-500.0,0.00042465,60]
[340370889,1729107262352,-500.0,0.00042465,60]
[340370890,1729107262386,-500.0,0.00042465,60]
[340370891,1729107262421,-500.0,0.00042465,60]
[340370892,1729107262457,-500.0,0.00042465,60]
[340370893,1729107262492,-505.85397218,0.00042465,60]
[340370894,1729107262716,-469.09793426,0.00042465,60]
[340370895,1729107262759,-500.0,0.00042465,60]
[340370896,1729107262796,-580.63,0.00042465,60]
[340370897,1729107262831,-3673.47,0.00042465,60]
[340370898,1729107262867,-543.83101947,0.00042465,60]
[340370899,1729107262904,-500.0,0.00042465,60]
[340370900,1729107262939,-1927.49,0.00042465,60]
[340370901,1729107262975,-500.0,0.00042465,60]
[340370902,1729107263010,-500.0,0.00042465,60]
[340370903,1729107263045,-756.88,0.00042465,60]
[340370904,1729107263082,-500.0,0.00042465,60]
[340370905,1729107263120,-1192.08,0.00042465,60]
[340370906,1729107263156,-852.62,0.00042465,60]
[340370907,1729107263192,-500.0,0.00042465,60]
[340370908,1729107263227,-500.0,0.00042465,60]
[340370909,1729107263261,-500.0,0.00042465,60]
[340370910,1729107263296,-526.6049753,0.00042465,60]
[340370911,1729107263331,-593.68,0.00042465,60]
[340370912,1729107263366,-500.0,0.00042465,60]
[340370913,1729107263404,-581.20420091,0.00042465,60]
[340370914,1729107263440,-500.0,0.00042465,60]
[340370915,1729107263478,-500.0,0.00042465,60]
[340370916,1729107263515,-500.0,0.00042465,60]
[340370917,1729107263554,-500.0,0.00042465,60]
[340370918,1729107263591,-954.7,0.00042465,60]
[340370919,1729107263629,-2109.52,0.00042465,60]
[340370920,1729107263667,-500.0,0.00042465,60]
[340370921,1729107263706,-500.0,0.00042465,60]
[340370922,1729107263743,-1517.17,0.00042465,60]
[340370923,1729107263779,-500.0,0.00042465,60]
[340370924,1729107263815,-500.0,0.00042465,60]
[340370925,1729107263856,-500.0,0.00042465,60]
[340370926,1729107263891,-2560.24,0.00042465,60]
[340370927,1729107263928,-500.0,0.00042465,60]
[340370928,1729107263968,-2087.1,0.00042465,60]
[340370929,1729107264006,-500.0,0.00042465,60]
[340370930,1729107264055,-500.0,0.00042465,60]
[340370931,1729107264095,-500.0,0.00042465,60]
[340370932,1729107264135,-529.75,0.00042465,60]
[340370933,1729107264172,-664.37,0.00042465,60]
[340370934,1729107264212,-760.02,0.00042465,60]
[340370935,1729107264251,-554.05,0.00042465,60]
[340370936,1729107264290,-539.06396166,0.00042465,60]
[340370937,1729107264327,-500.0,0.00042465,60]
[340370938,1729107264365,-500.0,0.00042465,60]
[340370939,1729107264400,-428.25295304,0.00042465,30]
[340370940,1729107264435,-500.0,0.00042465,60]
[340370941,1729107264469,-277.7997776,0.00042465,60]
[340370942,1729107264505,-500.0,0.00042465,60]
[340370943,1729107264539,-591.22567724,0.00042465,60]
[340370944,1729107264574,-516.03022214,0.00042465,60]
[340370945,1729107264609,-500.0,0.00042465,60]
[340370946,1729107264644,-500.0,0.00042465,60]
[340370947,1729107264680,-500.0,0.00042465,60]
[340370948,1729107264720,-561.42438129,0.00042465,60]
[340370949,1729107264756,-500.0,0.00042465,60]
[340370950,1729107264792,-274.77079079,0.00042465,60]
[340370951,1729107264830,-1659.34,0.00042465,60]
[340370952,1729107264868,-500.0,0.00042465,60]
[340370953,1729107264912,-500.0,0.00042465,60]
[340370954,1729107264960,-500.0,0.00042465,60]
[340370955,1729107265004,-500.0,0.00042465,60]
[340370956,1729107265044,-300.64512102,0.00042465,60]
[340370957,1729107265083,-500.0,0.00042465,60]
[340370958,1729107265130,-500.0,0.00042465,60]
[340370959,1729107265167,-500.0,0.00042465,60]
[340370960,1729107265203,-500.0,0.00042465,60]
[340370961,1729107265240,-1402.53,0.00042465,60]
[340370962,1729107265276,-347.08930296,0.00042465,60]
[340370963,1729107265312,-500.0,0.00042465,60]
[340370964,1729107265348,-500.0,0.00042465,60]
[340370965,1729107265384,-1412.91,0.00042465,60]
[340370966,1729107265419,-1019.66,0.00042465,60]
[340370967,1729107265453,-509.21396658,0.00042465,60]
[340370968,1729107265489,-500.0,0.00042465,60]
[340370969,1729107265526,-500.0,0.00042465,60]
[340370970,1729107265565,-503.83135854,0.00042465,60]
[340370971,1729107265604,-500.0,0.00042465,60]
[340370972,1729107265641,-2258.02,0.00042465,60]
[340370973,1729107265678,-500.0,0.00042465,60]
[340370974,1729107265713,-500.0,0.00042465,60]
[340370975,1729107265749,-500.0,0.00042465,60]
[340370976,1729107265784,-1009.92,0.00042465,60]
[340370977,1729107265821,-500.0,0.00042465,60]
[340370978,1729107265860,-656.52,0.00042465,60]
[340370979,1729107265897,-3437.62,0.00042465,60]
[340370980,1729107265933,-535.94377385,0.00042465,60]
[340370981,1729107265972,-22901.97,0.00042465,60]
[340370982,1729107266008,-500.0,0.00042465,60]
[340370983,1729107266045,-500.0,0.00042465,60]
[340370984,1729107266082,-500.0,0.00042465,60]
[340370985,1729107266123,-1521.21,0.00042465,60]
[340370986,1729107266162,-500.0,0.00042465,60]
[340370987,1729107266200,-558.96480451,0.00042465,60]
[340370988,1729107266239,-500.0,0.00042465,60]
[340370989,1729107266278,-500.0,0.00042465,60]
[340370990,1729107266316,-1351.86,0.00042465,60]
[340370991,1729107266355,-500.0,0.00042465,60]
[340370992,1729107266393,-500.0,0.00042465,60]
[340370993,1729107266432,-19492.87,0.00042465,30]
[340370994,1729107266473,-171.85154222,0.00042465,60]
[340370995,1729107266512,-637.77723192,0.00042465,60]
[340370996,1729107266550,-1143.45,0.00042465,60]
[340370997,1729107266588,-500.0,0.00042465,60]
[340370998,1729107266625,-500.0,0.00042465,60]
[340370999,1729107266842,-161.0,0.0004248,120]
[340371000,1729107266884,-3000.0,0.000425,120]
[340371001,1729107266924,-1000.0,0.0004253,120]
[340371002,1729107266963,-1000.0,0.0004253,120]
[340371003,1729107267000,-1000.0,0.0004253,120]
[340371004,1729107267040,-1687.71,0.0004253,120]
[340371005,1729107267080,-500.0,0.00042739,60]
[340371006,1729107267121,-500.0,0.00042739,60]
[340371007,1729107267161,-2503.87,0.00042739,60]
[340371008,1729107267201,-500.0,0.00042739,60]
[340371009,1729107267241,-500.0,0.00042739,60]
[340371010,1729107267282,-500.0,0.00042739,60]
[340371011,1729107267323,-2145.33,0.00042739,60]
[340371012,1729107267366,-500.0,0.00042739,60]
[340371013,1729107267407,-762.02,0.00042739,60]
[340371014,1729107267447,-500.0,0.00042739,60]
[340371015,1729107267490,-500.0,0.00042739,60]
[340371016,1729107267533,-500.0,0.00042739,60]
[340371017,1729107267574,-500.0,0.00042739,60]
[340371018,1729107267615,-500.0,0.00042739,60]
[340371019,1729107267659,-500.0,0.00042739,60]
[340371020,1729107267705,-558.42675884,0.00042739,60]
[340371021,1729107267744,-1355.88,0.00042739,60]
[340371022,1729107267785,-500.0,0.00042739,60]
[340371023,1729107267827,-500.0,0.00042739,60]
[340371024,1729107267868,-1059.28,0.00042739,60]
[340371025,1729107267910,-500.0,0.00042739,60]
[340371026,1729107267951,-500.0,0.00042739,60]
[340371027,1729107267989,-500.0,0.00042739,60]
[340371028,1729107268026,-500.0,0.00042739,60]
[340371029,1729107268064,-500.0,0.00042739,60]
[340371030,1729107268105,-500.0,0.00042739,60]
[340371031,1729107268145,-552.47948749,0.00042739,60]
[340371032,1729107268188,-500.0,0.00042739,60]
[340371033,1729107268228,-500.0,0.00042739,60]
[340371034,1729107268270,-500.0,0.00042739,60]
[340371035,1729107268311,-500.0,0.00042739,60]
[340371036,1729107268352,-630.53,0.00042739,60]
[340371037,1729107268393,-533.90726557,0.00042739,60]
[340371038,1729107268434,-478.73481286,0.00042739,60]
[340371039,1729107268475,-555.9811431,0.00042739,60]
[340371040,1729107268516,-613.06582658,0.00042739,60]
[340371041,1729107268558,-511.13885816,0.00042739,60]
[340371042,1729107268599,-564.87274928,0.00042739,60]
[340371043,1729107268639,-575.8,0.00042739,60]
[340371044,1729107268680,-500.0,0.00042739,60]
[340371045,1729107268721,-500.0,0.00042739,60]
[340371046,1729107268762,-1187.76,0.00042739,60]
[340371047,1729107268804,-781.96,0.00042739,60]
[340371048,1729107268845,-3448.75,0.00042739,60]
[340371049,1729107268885,-544.28707261,0.00042739,60]
[340371050,1729107268928,-526.06896599,0.00042739,60]
[340371051,1729107268970,-500.0,0.00042739,60]
[340371052,1729107269010,-500.0,0.00042739,60]
[340371053,1729107269048,-2794.24,0.00042739,60]
[340371054,1729107269087,-636.85377571,0.00042739,60]
[340371055,1729107269126,-500.0,0.00042739,60]
[340371056,1729107269165,-500.0,0.00042739,60]
[340371057,1729107269204,-515.20448052,0.00042739,60]
[340371058,1729107269243,-500.0,0.00042739,60]
[340371059,1729107269282,-500.0,0.00042739,60]
[340371060,1729107269320,-500.0,0.00042739,60]
[340371061,1729107269357,-500.0,0.00042739,60]
[340371062,1729107269394,-919.79,0.00042739,30]
[340371063,1729107269431,-1210.06,0.00042739,60]
[340371064,1729107269465,-576.49383152,0.00042739,60]
[340371065,1729107269500,-500.0,0.00042739,60]
[340371066,1729107269536,-266.09296985,0.00042739,60]
[340371067,1729107269570,-500.0,0.00042739,60]
[340371068,1729107269604,-511.96598103,0.00042739,60]
[340371069,1729107269640,-500.0,0.00042739,60]
[340371070,1729107269673,-500.0,0.00042739,60]
[340371071,1729107269707,-700.6,0.00042739,60]
[340371072,1729107269742,-500.0,0.00042739,60]
[340371073,1729107269776,-500.0,0.00042739,60]
[340371074,1729107269815,-500.0,0.00042739,60]
[340371075,1729107269853,-500.0,0.00042739,60]
[340371076,1729107269886,-1353.07,0.00042739,60]
[340371077,1729107269921,-500.0,0.00042739,60]
[340371078,1729107269955,-500.0,0.00042739,60]
[340371079,1729107269990,-500.0,0.00042739,60]
[340371080,1729107270024,-1272.87,0.00042739,60]
[340371081,1729107270059,-619.72,0.00042739,60]
[340371082,1729107270095,-500.0,0.00042739,60]
[340371083,1729107270130,-373.19719932,0.00042739,60]
[340371084,1729107270164,-500.0,0.00042739,60]
[340371085,1729107270199,-523.64,0.00042739,60]
[340371086,1729107270232,-500.0,0.00042739,60]
[340371087,1729107270265,-518.36664432,0.00042739,60]
[340371088,1729107270301,-500.0,0.00042739,60]
[340371089,1729107270338,-500.0,0.00042739,60]
[340371090,1729107270375,-500.0,0.00042739,30]
[340371091,1729107270410,-1480.6,0.00042739,60]
[340371092,1729107270447,-500.0,0.00042739,60]
[340371093,1729107270482,-500.0,0.00042739,60]
[340371094,1729107270516,-500.0,0.00042739,60]
[340371095,1729107270550,-1041.4,0.00042739,60]
[340371096,1729107270584,-650.64,0.00042739,60]
[340371097,1729107270619,-500.0,0.00042739,60]
[340371098,1729107270653,-500.0,0.00042739,60]
[340371099,1729107270686,-500.0,0.00042739,60]
[340371100,1729107270721,-500.0,0.00042739,60]
[340371101,1729107270756,-500.0,0.00042739,60]
[340371102,1729107270791,-500.0,0.00042739,60]
[340371103,1729107271033,-500.0,0.00042739,60]
[340371104,1729107271072,-517.05694481,0.00042739,60]
[340371105,1729107271111,-500.0,0.00042739,60]
[340371106,1729107271148,-500.0,0.00042739,60]
[340371107,1729107271185,-500.0,0.00042739,60]
[340371108,1729107271222,-500.0,0.00042739,60]
[340371109,1729107271257,-500.0,0.00042739,60]
[340371110,1729107271295,-500.0,0.00042739,60]
[340371111,1729107271332,-266.11654291,0.00042739,60]
[340371112,1729107271372,-500.0,0.00042739,60]
[340371113,1729107271412,-510.62,0.00042739,60]
[340371114,1729107271453,-500.0,0.00042739,60]
[340371115,1729107271494,-500.0,0.00042739,60]
[340371116,1729107271534,-1228.18,0.00042739,60]
[340371117,1729107271571,-500.0,0.00042739,60]
[340371118,1729107271607,-500.0,0.00042739,60]
[340371119,1729107271644,-1061.56,0.00042739,60]
[340371120,1729107271679,-500.0,0.00042739,60]
[340371121,1729107271715,-500.0,0.00042739,60]
[340371122,1729107271752,-516.4498621,0.00042739,60]
[340371123,1729107271789,-500.0,0.00042739,60]
[340371124,1729107271829,-519.5,0.00042739,60]
[340371125,1729107271867,-500.0,0.00042739,60]
[340371126,1729107271904,-500.0,0.00042739,60]
[340371127,1729107271942,-500.0,0.00042739,60]
[340371128,1729107271981,-1644.17,0.00042739,60]
[340371129,1729107272021,-500.0,0.00042739,60]
[340371130,1729107272059,-500.0,0.00042739,60]
[340371131,1729107272099,-568.66112958,0.00042739,60]
[340371132,1729107272138,-500.0,0.00042739,60]
[340371133,1729107272178,-500.0,0.00042739,60]
[340371134,1729107272217,-500.0,0.00042739,60]
[340371135,1729107272258,-500.0,0.00042739,60]
[340371136,1729107272297,-500.0,0.00042739,60]
[340371137,1729107272333,-500.0,0.00042739,60]
[340371138,1729107272369,-500.0,0.00042739,60]
[340371139,1729107272404,-500.0,0.00042739,60]
[340371140,1729107272439,-495.55196075,0.00042739,60]
[340371141,1729107272474,-1392.5,0.00042739,60]
[340371142,1729107272509,-170.44606298,0.00042739,60]
[340371143,1729107272543,-616.10205821,0.00042739,60]
[340371144,1729107272576,-500.0,0.00042739,60]
[340371145,1729107272610,-500.0,0.00042739,60]
[340371146,1729107272644,-194.36093259,0.00042739,60]
[340371147,1729107272679,-500.0,0.00042739,60]
[340371148,1729107272714,-500.0,0.00042739,60]
[340371149,1729107272748,-500.0,0.00042739,60]
[340371150,1729107272782,-542.11543597,0.00042739,60]
[340371151,1729107272818,-500.0,0.00042739,60]
[340371152,1729107272860,-500.0,0.00042739,60]
[340371153,1729107272897,-500.0,0.00042739,60]
[340371154,1729107272937,-500.0,0.00042739,60]
[340371155,1729107272973,-500.0,0.00042739,60]
[340371156,1729107273009,-500.0,0.00042739,60]
[340371157,1729107273046,-500.0,0.00042739,60]
[340371158,1729107273084,-500.0,0.00042739,60]
[340371159,1729107273125,-1022.92,0.00042739,60]
[340371160,1729107273164,-501.2543035,0.00042739,60]
[340371161,1729107273204,-784.03,0.00042739,60]
[340371162,1729107273242,-500.0,0.00042739,60]
[340371163,1729107273281,-1867.39,0.00042739,60]
[340371164,1729107273319,-500.0,0.00042739,60]
[340371165,1729107273357,-789.11,0.00042739,60]
[340371166,1729107273395,-500.0,0.00042739,60]
[340371167,1729107273432,-500.0,0.00042739,60]
[340371168,1729107273469,-1205.33,0.00042739,60]
[340371169,1729107273506,-500.0,0.00042739,60]
[340371170,1729107273544,-500.0,0.00042739,60]
[340371171,1729107273581,-512.64659843,0.00042739,60]
[340371172,1729107273618,-500.0,0.00042739,60]
[340371173,1729107273655,-500.0,0.00042739,60]
[340371174,1729107273691,-500.0,0.00042739,60]
[340371175,1729107273727,-500.0,0.00042739,60]
[340371176,1729107273762,-3664.05,0.00042739,60]
[340371177,1729107273799,-931.18,0.00042739,60]
[340371178,1729107273836,-559.86,0.00042739,60]
[340371179,1729107273874,-500.0,0.00042739,60]
[340371180,1729107273913,-500.0,0.00042739,60]
[340371181,1729107273954,-597.1217257,0.00042739,60]
[340371182,1729107273993,-565.84,0.00042739,60]
[340371183,1729107274031,-735.99,0.00042739,60]
[340371184,1729107274071,-500.0,0.00042739,60]
[340371185,1729107274111,-2000.0,0.00042739,60]
[340371186,1729107274151,-2776.97,0.00042739,60]
[340371187,1729107274190,-500.0,0.00042739,60]
[340371188,1729107274231,-500.0,0.00042739,60]
[340371189,1729107274269,-6776.89,0.00042739,60]
[340371190,1729107274306,-537.53569495,0.00042739,60]
[340371191,1729107274344,-500.0,0.00042739,60]
[340371192,1729107274383,-500.0,0.00042739,60]
[340371193,1729107274424,-500.0,0.00042739,60]
[340371194,1729107274464,-487.44409976,0.00042739,60]
[340371195,1729107274501,-500.0,0.00042739,60]
[340371196,1729107274539,-500.0,0.00042739,60]
[340371197,1729107274576,-522.28,0.00042739,60]
[340371198,1729107274614,-500.0,0.00042739,60]
[340371199,1729107274653,-500.0,0.00042739,60]
[340371200,1729107274689,-511.34063178,0.00042739,60]
[340371201,1729107274728,-500.0,0.00042739,60]
[340371202,1729107274767,-3576.83,0.00042739,60]
[340371203,1729107274805,-500.0,0.00042739,60]
[340371204,1729107274844,-508.52372145,0.00042739,60]
[340371205,1729107274882,-500.0,0.00042739,60]
[340371206,1729107274923,-500.0,0.00042739,60]
[340371207,1729107275158,-500.0,0.00042739,60]
[340371208,1729107275202,-4599.54,0.00042739,60]
[340371209,1729107275244,-510.88577593,0.00042739,60]
[340371210,1729107275287,-500.0,0.00042739,60]
[340371211,1729107275326,-500.0,0.00042739,60]
[340371212,1729107275365,-500.0,0.00042739,60]
[340371213,1729107275405,-500.0,0.00042739,60]
[340371214,1729107275445,-500.0,0.00042739,60]
[340371215,1729107275485,-500.0,0.00042739,60]
[340371216,1729107275528,-520.91515339,0.00042739,60]
[340371217,1729107275572,-580.63,0.00042739,60]
[340371218,1729107275613,-3673.47,0.00042739,60]
[340371219,1729107275653,-500.0,0.00042739,60]
[340371220,1729107275691,-1927.49,0.00042739,60]
[340371221,1729107275728,-510.03440625,0.00042739,60]
[340371222,1729107275766,-500.0,0.00042739,60]
[340371223,1729107275808,-500.0,0.00042739,60]
[340371224,1729107275850,-756.88,0.00042739,60]
[340371225,1729107275889,-1192.08,0.00042739,60]
[340371226,1729107275929,-852.62,0.00042739,60]
[340371227,1729107275966,-161.32289753,0.00042739,60]
[340371228,1729107276003,-380.89799259,0.00042739,60]
[340371229,1729107276042,-500.0,0.00042739,60]
[340371230,1729107276079,-593.68,0.00042739,60]
[340371231,1729107276118,-500.0,0.00042739,60]
[340371232,1729107276154,-500.0,0.00042739,60]
[340371233,1729107276190,-500.0,0.00042739,60]
[340371234,1729107276225,-500.0,0.00042739,60]
[340371235,1729107276261,-500.0,0.00042739,60]
[340371236,1729107276298,-954.7,0.00042739,60]
[340371237,1729107276334,-2109.52,0.00042739,60]
[340371238,1729107276369,-235.54015165,0.00042739,60]
[340371239,1729107276404,-500.0,0.00042739,60]
[340371240,1729107276440,-1517.17,0.00042739,60]
[340371241,1729107276477,-500.0,0.00042739,60]
[340371242,1729107276514,-500.0,0.00042739,60]
[340371243,1729107276551,-500.0,0.00042739,60]
[340371244,1729107276587,-2560.24,0.00042739,60]
[340371245,1729107276628,-500.0,0.00042739,60]
[340371246,1729107276667,-2087.1,0.00042739,60]
[340371247,1729107276703,-500.0,0.00042739,60]
[340371248,1729107276741,-500.0,0.00042739,60]
[340371249,1729107276778,-500.0,0.00042739,60]
[340371250,1729107276814,-529.75,0.00042739,60]
[340371251,1729107276855,-664.37,0.00042739,60]
[340371252,1729107276894,-760.02,0.00042739,60]
[340371253,1729107276930,-554.05,0.00042739,60]
[340371254,1729107276967,-500.0,0.00042739,60]
[340371255,1729107277004,-500.0,0.00042739,60]
[340371256,1729107277041,-500.0,0.00042739,60]
[340371257,1729107277077,-500.0,0.00042739,60]
[340371258,1729107277116,-500.0,0.00042739,60]
[340371259,1729107277153,-500.0,0.00042739,60]
[340371260,1729107277189,-500.0,0.00042739,60]
[340371261,1729107277226,-500.0,0.00042739,60]
[340371262,1729107277264,-1659.34,0.00042739,60]
[340371263,1729107277300,-500.0,0.00042739,60]
[340371264,1729107277338,-1892.16,0.00042739,120]
[340371265,1729107277375,-500.0,0.00042739,60]
[340371266,1729107277410,-500.0,0.00042739,60]
[340371267,1729107277445,-500.0,0.00042739,60]
[340371268,1729107277484,-191.3242249,0.00042739,60]
[340371269,1729107277520,-424.10452818,0.00042739,60]
[340371270,1729107277554,-268.57940497,0.00042739,60]
[340371271,1729107277590,-500.0,0.00042739,60]
[340371272,1729107277627,-1402.53,0.00042739,60]
[340371273,1729107277662,-500.0,0.00042739,60]
[340371274,1729107277698,-500.0,0.00042739,60]
[340371275,1729107277732,-1412.91,0.00042739,60]
[340371276,1729107277767,-1019.66,0.00042739,60]
[340371277,1729107277802,-500.0,0.00042739,60]
[340371278,1729107277842,-500.0,0.00042739,60]
[340371279,1729107277876,-500.0,0.00042739,60]
[340371280,1729107277914,-2258.02,0.00042739,60]
[340371281,1729107277952,-500.0,0.00042739,60]
[340371282,1729107277989,-500.0,0.00042739,60]
[340371283,1729107278027,-500.0,0.00042739,60]
[340371284,1729107278066,-1009.92,0.00042739,60]
[340371285,1729107278105,-500.0,0.00042739,60]
[340371286,1729107278144,-656.52,0.00042739,60]
[340371287,1729107278184,-3437.62,0.00042739,60]
[340371288,1729107278225,-22901.97,0.00042739,60]
[340371289,1729107278262,-511.52886516,0.00042739,60]
[340371290,1729107278300,-500.0,0.00042739,60]
[340371291,1729107278337,-500.0,0.00042739,60]
[340371292,1729107278374,-1521.21,0.00042739,60]
[340371293,1729107278411,-259.79320677,0.00042739,60]
[340371294,1729107278451,-530.52457841,0.00042739,60]
[340371295,1729107278487,-537.82465106,0.00042739,60]
[340371296,1729107278522,-1351.86,0.00042739,60]
[340371297,1729107278558,-500.0,0.00042739,60]
[340371298,1729107278596,-500.0,0.00042739,60]
[340371299,1729107278634,-19492.87,0.00042739,30]
[340371300,1729107278670,-1143.45,0.00042739,60]
[340371301,1729107278707,-500.0,0.00042739,60]
[340371302,1729107278743,-500.0,0.00042739,60]
[340371303,1729107278779,-1111.0,0.0004274,30]
[340371304,1729107278817,-151.0,0.00042822,120]
[340371305,1729107278855,-1680.0476613,0.00043,120]
[340371310,1729107350425,157.0,0.00027,60]
[340371312,1729107464511,10000.0,0.00014,2]
[340371384,1729108237944,-186.29,0.00019061,2]
[340371385,1729108237955,-202.75873593,0.00019061,2]
[340371386,1729108237966,-87.99327576,0.00019329,2]
[340371407,1729108239731,-5656.32844808,0.00019329,2]
[340371408,1729108239741,-159.93877617,0.00019338,2]
[340371409,1729108239751,-159.93877617,0.00019342,2]
[340371410,1729108239761,-159.93877617,0.00019345,2]
[340371411,1729108239770,-159.93877617,0.00019349,2]
[340371412,1729108239780,-1572.99487785,0.00019349,2]
[340371413,1729108239790,-300.0,0.00019371,2]
[340371414,1729108239801,-300.0,0.00019371,2]
[340371415,1729108239810,-1477.04201169,0.00019372,2]
[340371416,1729108239820,-4999.45624368,0.00019372,2]
[340371417,1729108239830,-352.79129342,0.000194,2]
[340371418,1729108239839,-27494.87879865,0.000194,2]
[340371419,1729108239850,-54632.8728016,0.0001943,3]
[340371420,1729108239860,-44793.2645306,0.0001943,3]
[340371421,1729108239869,-500.0,0.00019438,2]
[340371422,1729108239881,-500.0,0.00019438,2]
[340371423,1729108239891,-500.0,0.00019438,2]
[340371424,1729108239902,-500.0,0.00019438,2]
[340371425,1729108239912,-205.06438491,0.00019438,2]
[340371426,1729108239922,-500.0,0.00019438,2]
[340371427,1729108239933,-500.0,0.00019438,2]
[340371428,1729108239943,-210.82456229,0.00019438,2]
[340371429,1729108239955,-241.07862823,0.00019438,2]
[340371430,1729108239964,-207.37725536,0.00019438,2]
[340371431,1729108239975,-616.10423873,0.00019438,2]
[340371432,1729108239985,-234.1867271,0.00019438,2]
[340371433,1729108239994,-500.0,0.00019438,2]
[340371434,1729108240004,-500.0,0.00019438,2]
[340371435,1729108240015,-500.0,0.00019438,2]
[340371436,1729108240026,-500.0,0.00019438,2]
[340371437,1729108240036,-500.0,0.00019438,2]
[340371438,1729108240046,-500.0,0.00019438,2]
[340371439,1729108240055,-591.08244158,0.00019438,2]
[340371440,1729108240065,-500.0,0.00019438,2]
[340371441,1729108240075,-500.0,0.00019438,2]
[340371442,1729108240085,-500.0,0.00019438,2]
[340371443,1729108240097,-500.0,0.00019438,2]
[340371444,1729108240106,-500.0,0.00019438,2]
[340371445,1729108240116,-500.0,0.00019438,2]
[340371446,1729108240126,-500.0,0.00019438,2]
[340371447,1729108240136,-500.0,0.00019438,2]
[340371448,1729108240147,-500.0,0.00019438,2]
[340371449,1729108240157,-500.0,0.00019438,2]
[340371450,1729108240168,-500.0,0.00019438,2]
[340371451,1729108240178,-500.0,0.00019438,2]
[340371452,1729108240188,-273164.364008,0.00019439,3]
[340371453,1729108240198,-268759.587183,0.00019439,3]
[340371454,1729108240208,-500.0,0.00019449,2]
[340371455,1729108240219,-17264.81,0.00019449,2]
[340371456,1729108240230,-17264.81,0.00019449,2]
[340371457,1729108240240,-17264.81,0.00019449,2]
[340371458,1729108240251,-17264.81,0.00019449,2]
[340371459,1729108240261,-17264.81,0.00019449,2]
[340371460,1729108240273,-17264.81,0.00019449,2]
[340371461,1729108240284,-17264.81,0.00019449,2]
[340371462,1729108240294,-17264.81,0.00019449,2]
[340371463,1729108240304,-17264.81,0.00019449,2]
[340371464,1729108240314,-17264.81,0.00019449,2]
[340371465,1729108240328,-5687.81946291,0.00019449,2]
[340371490,1729108242908,-695.71,0.0001942,3]
[340371491,1729108242919,-3053.94624369,0.00019449,2]
[340371595,1729108245806,-668.0,0.00019449,2]
[340371690,1729109439900,-166.666667,0.00018502,2]
[340371692,1729109439910,-166.666667,0.00018984,2]
[340371694,1729109439921,-5026.28150836,0.00019175,2]
[340371696,1729109439931,-300.0,0.00019263,2]
[340371698,1729109439941,-300.0,0.00019263,2]
[340371700,1729109439952,-579.76,0.00019264,3]
[340371702,1729109439962,-289.88,0.00019264,3]
[340371704,1729109439971,-869.64,0.00019264,3]